{"text_format":"2","workbook":"xlsx","n_sheets":3,"sheets":["Milestones","CS_BSc_EN_Subjects","Semesters"],"not_rendered":{"charts":0,"images":0,"macros":0,"external_links":0,"defined_names":1,"comments":0,"pivot_tables":0},"unopened":[],"bounds":{"document_bytes":16777216,"sheet_cells":100000,"run_cost":"one","rows_first":2000,"rows_last":500,"rows_between":2000,"halvings":0,"cell_chars":16384,"cell_head_chars":4096},"cells_cut":0,"cells_raw":0,"read":"whole","date_system":"1900"}

{"sheet":"Milestones","index":0,"n_rows":13,"n_cols":6,"rows_kept":13,"cut":false,"hidden":false,"merged":[]}
["Milestone code","Parent milestone","Milestone name","Minimum credits","Type","Description and remarks"]
["SZAKM","-","Professional subjects",170,"Mandatory","All professional subjects in one milestone. This allows for significant curriculum changes later without major complications."]
["  KKV","SZAKM","Mandatory and recommended professional subjects",131,"Mandatory","It includes all mandatory and recommended mandatory elective subjects."]
["    MAT","  KKV","Mathematical and theoretical computer science knowledge",60,"Mandatory","According to the KKK (Képzési és Kimeneti Követelmények - Training and Output Requirements), it is necessary to distinguish between IT and mathematical/computer science subjects. "]
["      MAT-K","    MAT","Mandatory mathematical and theoretical computer science knowledge",44,"Mandatory","Mandatory (core subjects). The minimum requirement is the total number of credits of the mandatory subjects. "]
["      MAT-J","    MAT","Recomended mathematical and theoretical computer science knowledge","-","Mandatory","All subjects listed here are mandatory electives."]
["    INF","  KKV","Informatics knowledge",60,"Mandatory","Informatics knowledge (e.g., programming knowledge, databases, system development, etc.)"]
["      INF-K","    INF","Mandatory informatics knowledge",57,"Mandatory","Mandatory (core subjects). The minimum requirement is the total number of credits of the mandatory subjects. "]
["      INF-J","    INF","Recommended informatics knowledge","-","Mandatory"]
["    KKV-K","  KKV","Other mandatory subjects",2,"Mandatory","Other mandatory subjects not categorized above"]
["  EGY","SZAKM","Other professional subjects","-","Mandatory elective","Professional subjects (specialized courses) that cannot be accounted for in the above milestones. "]
["  SZAKD","SZAKM","Thesis",20,"Mandatory","Courses related to the preparation of the thesis work. These courses can be taken consecutively or even within the same semester with the approval of the supervisor."]
["SZV","-","Elective","-","Elective","A 10-credit framework must be provided for freely elective subjects. If more mandatory elective subjects and specialized courses have been completed, the extra credits can also be recognized against the freely elective credits."]

{"sheet":"CS_BSc_EN_Subjects","index":1,"n_rows":75,"n_cols":13,"rows_kept":75,"cut":false,"hidden":false,"merged":[[68,9,68,12],[0,2,0,3],[0,9,0,11],[70,9,70,12],[69,9,69,12],[74,1,74,3],[73,0,73,3],[3,0,3,8],[5,0,5,8],[21,0,21,8],[37,0,37,8],[41,0,41,8],[52,0,52,8],[59,0,59,8],[68,0,68,8]]}
["Name of the program: Computer Science BSc",null,"Program coordinator: Rudolf Ferenc Dr.",{"$nulls":6},"2025 spring semester",null,null,"Total credits"]
["Subject code","Subject title, type (lecture, seminar, practice, lab, consultation, etc.)","Course coordinator","Prerequisite (course code, prerequisite type)","Credit","Contact hours / week","Semester","Mode of completion","Notes","Course code","Time","Classroom",{"$f":"SUM(M3:M113)","v":31}]
[]
["For all courses consisting of lectures and practices at the Institute, the simultaneous enrollment in both the lecture and the practice is required. Additionally, passing the exams for the lectures is conditional on the completion of the practices."]
[]
["[MAT-K] Mandatory mathematical and theoretical computer science knowledge"]
["MBNXEN111E","Discrete Mathematics I. (lecture)","Kamilla Kátai-Urbán Dr.","none",2,2,1,"Colloquium","Critical"]
["MBNXEN111G","Discrete Mathematics I. (practice)","Kamilla Kátai-Urbán Dr.","none",3,2,1,"Practical grade","Critical"]
["MBNXEN311E","Calculus I. (lecture)","Tamás Zoltán Szabó Dr.","none",2,2,1,"Colloquium","Critical"]
["MBNXEN311G","Calculus I. (practice)","Tamás Zoltán Szabó Dr.","none",3,2,1,"Practical grade","Critical"]
["IBNa1003Een","Optimization Algorithms (lecture)","Boglárka Gazdag-Tóth Dr.","none",1,1,1,"Colloquium"," "]
["IBNa1003Len","Optimization Algorithms (practice)","Boglárka Gazdag-Tóth Dr.","none",3,2,1,"Practical grade"," "]
["MBNXEN262E","Fundamentals of Stochastics (lecture)",null,"Calculus 1 (lecture)",2,2,2,"Colloquium",{"$nulls":4},{"$f":"E13","v":2}]
["MBNXEN262G","Fundamentals of Stochastics  (practice)",null,"Calculus 1 (lecture)",3,2,2,"Practical grade",{"$nulls":4},{"$f":"E14","v":3}]
["IBNa1015Een","Numerical Computing (lecture)","Tibor Csendes Dr.","Discrete Mathematics I.",2,1,2,"Colloquium",{"$nulls":4},{"$f":"E15","v":2}]
["IBNa1015Len","Numerical Computing (practice)","Tibor Csendes Dr.","Discrete Mathematics I.",2,1,2,"Practical grade",{"$nulls":4},2]
["IBNa1031Een","Algorithms and Data Structures (lecture)","József Békési Dr.","Foundations of Programming (practice)",2,2,2,"Colloquium",{"$nulls":4},2]
["IBNa1031Len","Algorithms and Data Structures I (practice)","József Békési Dr.","Foundations of Programming (practice)",2,1,2,"Practical grade",{"$nulls":4},2]
[null,"The rest of the curriculum is being finalized …",{"$nulls":6}," "]
["Total:",null,null,null,{"$f":"SUM(E7:E19)","v":27},{"$f":"SUM(F7:F19)","v":20}]
[]
["[INF-K] Mandatory informatics knowledge"]
["IBNa1001Een","Foundations of Programming (lecture)","Tamás Gergely Dr.","none",2,2,1,"Colloquium","Critical"]
["IBNa1001Len","Foundations of Programming (practice)","Tamás Gergely Dr.","none",3,2,1,"Practical grade","Critical"]
["IBNa1012Een","Computer Architectures","Antal Nagy Dr.","none",2,2,1,"Colloquium"," "]
["IBNa1013Een","Computer Networks","Vilmos Bilicki Dr.","none",2,1,1,"Colloquium"," "]
["IBNa1004Len","Introduction to Computer Technology","Csaba Holló Dr.","none",2,2,1,"Practical grade"," "]
["IBNa1014Een","Foundations of Web Development (lecture)","Csaba Holló Dr.","none",1,1,1,"Report (5 grade)"," "]
["IBNa1014Len","Foundations of Web Development (practice)","Csaba Holló Dr.","none",2,1,1,"Practical grade"," "]
["IBNa1002Een","Object-Oriented Programming (lecture)","Rudolf Ferenc Dr.","Foundations of Programming (practice)",2,2,2,"Colloquium","Critical",null,null,null,{"$f":"E30","v":2}]
["IBNa1002Len","Object-Oriented Programming (practice)","Rudolf Ferenc Dr.","Foundations of Programming (practice)",3,2,2,"Practical grade","Critical",null,null,null,3]
["IBNa1035Een","Software Development Processes (lecture)","László Vidács Dr.","none",2,2,2,"Colloquium",{"$nulls":4},2]
["IBNa1035Len","Software Development Processes (practice)","László Vidács Dr.","none",2,1,2,"Practical grade",{"$nulls":4},2]
["IBNa1036Een","Operating Systems (lecture)","Antal Nagy Dr.","none",2,2,2,"Colloquium",{"$nulls":4},2]
["IBNa1036Len","Operating Systems (practice)","Antal Nagy Dr.","none",2,1,2,"Practical grade",{"$nulls":4},2]
["Total:",null,null,null,{"$f":"SUM(E23:E35)","v":27},{"$f":"SUM(F23:F35)","v":21}]
[]
["[KKV-K] Other mandatory subjects"]
["IBNa1005Een","Personal and Social Skills","Csaba Holló Dr.","none",2,2,1,"Report (5-grade)"," "]
["Total:",null,null,null,{"$f":"SUM(E39)","v":2},{"$f":"SUM(F39)","v":2}]
[]
["[MAT-J] Recomended mathematical and theoretical computer science knowledge"]
["MBNXEN112E","Discrete mathematics II. (lecture)",null,"Discrete Mathematics 1 (lecture)",2,2,2,null," ",null,null,null,{"$f":"E43","v":2}]
["MBNXEN112G","Discrete mathematics II. (practice)",null,"Discrete Mathematics 1 (lecture)",3,2,2,{"$nulls":5},{"$f":"E44","v":3}]
["IBV117E","Verified knowledge of artificial intelligence","Richárd Farkas Dr.",null,4,2,"any","Colloquium"]
["IBV002X","Verified theoretical knowledge of computer science","Zsolt Gazdag Dr.",null,5,4,"any","Colloquium"]
["IBV002E","Verified theoretical knowledge of computer science","Zsolt Gazdag Dr.",null,3,2,"any","Colloquium"]
["IBV002G","Verified theoretical knowledge of computer science","Zsolt Gazdag Dr.",null,2,2,"any","Colloquium"]
[null,"Further mandatori elective subjects that are registered in Neptun"]
["Total:",null,null,null,{"$f":"SUM(E43:E49)","v":19},{"$f":"SUM(F43:F49)","v":14}]
[]
[]
["[INF-J] Recommended informatics knowledge"]
["IBV003X","Verified knowledge of computer science","Rudolf Ferenc Dr.",null,5,4,"any","Colloquium"]
["IBV003E","Verified knowledge of computer science","Rudolf Ferenc Dr.",null,3,2,"any","Colloquium"]
["IBV003G","Verified knowledge of computer science","Rudolf Ferenc Dr.",null,2,2,"any","Colloquium"]
[null,"Further mandatori elective subjects that are registered in Neptun"]
["Total:",null,null,null,{"$f":"SUM(E54:E57)","v":10},{"$f":"SUM(F54:F57)","v":8}]
[]
["[EGY] Other professional subjects"]
["IBV001X","Validated Professional Knowledge","Szilveszter Pletl Dr.",null,5,4,"any","Colloquium"]
["IBV001E","Validated Professional Knowledge","Szilveszter Pletl Dr.",null,3,2,"any","Colloquium"]
["IBV001G","Validated Professional Knowledge","Szilveszter Pletl Dr.",null,2,2,"any","Colloquium"]
[null,"Further mandatori elective subjects that are registered in Neptun"]
["Total:",null,null,null,{"$f":"SUM(E61:E64)","v":10},{"$f":"SUM(F61:F64)","v":8}]
[]
[]
[]
["[SZV] Elective (up to 10 credits)"]
[null,"Any elective subjects",{"$nulls":7},"Any elective subject (see in Neptun)"]
["Total:",null,null,null,{"$f":"SUM(E70)","v":0},{"$f":"SUM(F70)","v":0}]
[]
[]
["Notes"]
["Critical","Completing the designated courses in the given semester is critical. Failure to complete the course may result in a delay of several semesters and significant additional expenses."]

{"sheet":"Semesters","index":2,"n_rows":47,"n_cols":9,"rows_kept":47,"cut":false,"hidden":false,"merged":[[26,0,26,8],[1,0,1,8],[3,0,3,8],[28,0,28,8]]}
[]
["Semester 1"]
["Course code","Course title","Course coordinator","Prerequisite","Credit","Contact hours / week","Semester","Mode of completion","Notes"]
["Mandatory courses"]
[{"$f":"CS_BSc_EN_Subjects!A7","v":"MBNXEN111E"},{"$f":"CS_BSc_EN_Subjects!B7","v":"Discrete Mathematics I. (lecture)"},{"$f":"CS_BSc_EN_Subjects!C7","v":"Kamilla Kátai-Urbán Dr."},{"$f":"CS_BSc_EN_Subjects!D7","v":"none"},{"$f":"CS_BSc_EN_Subjects!E7","v":2},{"$f":"CS_BSc_EN_Subjects!F7","v":2},{"$f":"CS_BSc_EN_Subjects!G7","v":1},{"$f":"CS_BSc_EN_Subjects!H7","v":"Colloquium"},{"$f":"CS_BSc_EN_Subjects!I7","v":"Critical"}]
[{"$f":"CS_BSc_EN_Subjects!A8","v":"MBNXEN111G"},{"$f":"CS_BSc_EN_Subjects!B8","v":"Discrete Mathematics I. (practice)"},{"$f":"CS_BSc_EN_Subjects!C8","v":"Kamilla Kátai-Urbán Dr."},{"$f":"CS_BSc_EN_Subjects!D8","v":"none"},{"$f":"CS_BSc_EN_Subjects!E8","v":3},{"$f":"CS_BSc_EN_Subjects!F8","v":2},{"$f":"CS_BSc_EN_Subjects!G8","v":1},{"$f":"CS_BSc_EN_Subjects!H8","v":"Practical grade"},{"$f":"CS_BSc_EN_Subjects!I8","v":"Critical"}]
[{"$f":"CS_BSc_EN_Subjects!A9","v":"MBNXEN311E"},{"$f":"CS_BSc_EN_Subjects!B9","v":"Calculus I. (lecture)"},{"$f":"CS_BSc_EN_Subjects!C9","v":"Tamás Zoltán Szabó Dr."},{"$f":"CS_BSc_EN_Subjects!D9","v":"none"},{"$f":"CS_BSc_EN_Subjects!E9","v":2},{"$f":"CS_BSc_EN_Subjects!F9","v":2},{"$f":"CS_BSc_EN_Subjects!G9","v":1},{"$f":"CS_BSc_EN_Subjects!H9","v":"Colloquium"},{"$f":"CS_BSc_EN_Subjects!I9","v":"Critical"}]
[{"$f":"CS_BSc_EN_Subjects!A10","v":"MBNXEN311G"},{"$f":"CS_BSc_EN_Subjects!B10","v":"Calculus I. (practice)"},{"$f":"CS_BSc_EN_Subjects!C10","v":"Tamás Zoltán Szabó Dr."},{"$f":"CS_BSc_EN_Subjects!D10","v":"none"},{"$f":"CS_BSc_EN_Subjects!E10","v":3},{"$f":"CS_BSc_EN_Subjects!F10","v":2},{"$f":"CS_BSc_EN_Subjects!G10","v":1},{"$f":"CS_BSc_EN_Subjects!H10","v":"Practical grade"},{"$f":"CS_BSc_EN_Subjects!I10","v":"Critical"}]
[{"$f":"CS_BSc_EN_Subjects!A11","v":"IBNa1003Een"},{"$f":"CS_BSc_EN_Subjects!B11","v":"Optimization Algorithms (lecture)"},{"$f":"CS_BSc_EN_Subjects!C11","v":"Boglárka Gazdag-Tóth Dr."},{"$f":"CS_BSc_EN_Subjects!D11","v":"none"},{"$f":"CS_BSc_EN_Subjects!E11","v":1},{"$f":"CS_BSc_EN_Subjects!F11","v":1},{"$f":"CS_BSc_EN_Subjects!G11","v":1},{"$f":"CS_BSc_EN_Subjects!H11","v":"Colloquium"},{"$f":"CS_BSc_EN_Subjects!I11","v":" "}]
[{"$f":"CS_BSc_EN_Subjects!A12","v":"IBNa1003Len"},{"$f":"CS_BSc_EN_Subjects!B12","v":"Optimization Algorithms (practice)"},{"$f":"CS_BSc_EN_Subjects!C12","v":"Boglárka Gazdag-Tóth Dr."},{"$f":"CS_BSc_EN_Subjects!D12","v":"none"},{"$f":"CS_BSc_EN_Subjects!E12","v":3},{"$f":"CS_BSc_EN_Subjects!F12","v":2},{"$f":"CS_BSc_EN_Subjects!G12","v":1},{"$f":"CS_BSc_EN_Subjects!H12","v":"Practical grade"},{"$f":"CS_BSc_EN_Subjects!I12","v":" "}]
[{"$f":"CS_BSc_EN_Subjects!A23","v":"IBNa1001Een"},{"$f":"CS_BSc_EN_Subjects!B23","v":"Foundations of Programming (lecture)"},{"$f":"CS_BSc_EN_Subjects!C23","v":"Tamás Gergely Dr."},{"$f":"CS_BSc_EN_Subjects!D23","v":"none"},{"$f":"CS_BSc_EN_Subjects!E23","v":2},{"$f":"CS_BSc_EN_Subjects!F23","v":2},{"$f":"CS_BSc_EN_Subjects!G23","v":1},{"$f":"CS_BSc_EN_Subjects!H23","v":"Colloquium"},{"$f":"CS_BSc_EN_Subjects!I23","v":"Critical"}]
[{"$f":"CS_BSc_EN_Subjects!A24","v":"IBNa1001Len"},{"$f":"CS_BSc_EN_Subjects!B24","v":"Foundations of Programming (practice)"},{"$f":"CS_BSc_EN_Subjects!C24","v":"Tamás Gergely Dr."},{"$f":"CS_BSc_EN_Subjects!D24","v":"none"},{"$f":"CS_BSc_EN_Subjects!E24","v":3},{"$f":"CS_BSc_EN_Subjects!F24","v":2},{"$f":"CS_BSc_EN_Subjects!G24","v":1},{"$f":"CS_BSc_EN_Subjects!H24","v":"Practical grade"},{"$f":"CS_BSc_EN_Subjects!I24","v":"Critical"}]
[{"$f":"CS_BSc_EN_Subjects!A25","v":"IBNa1012Een"},{"$f":"CS_BSc_EN_Subjects!B25","v":"Computer Architectures"},{"$f":"CS_BSc_EN_Subjects!C25","v":"Antal Nagy Dr."},{"$f":"CS_BSc_EN_Subjects!D25","v":"none"},{"$f":"CS_BSc_EN_Subjects!E25","v":2},{"$f":"CS_BSc_EN_Subjects!F25","v":2},{"$f":"CS_BSc_EN_Subjects!G25","v":1},{"$f":"CS_BSc_EN_Subjects!H25","v":"Colloquium"},{"$f":"CS_BSc_EN_Subjects!I25","v":" "}]
[{"$f":"CS_BSc_EN_Subjects!A26","v":"IBNa1013Een"},{"$f":"CS_BSc_EN_Subjects!B26","v":"Computer Networks"},{"$f":"CS_BSc_EN_Subjects!C26","v":"Vilmos Bilicki Dr."},{"$f":"CS_BSc_EN_Subjects!D26","v":"none"},{"$f":"CS_BSc_EN_Subjects!E26","v":2},{"$f":"CS_BSc_EN_Subjects!F26","v":1},{"$f":"CS_BSc_EN_Subjects!G26","v":1},{"$f":"CS_BSc_EN_Subjects!H26","v":"Colloquium"},{"$f":"CS_BSc_EN_Subjects!I26","v":" "}]
[{"$f":"CS_BSc_EN_Subjects!A27","v":"IBNa1004Len"},{"$f":"CS_BSc_EN_Subjects!B27","v":"Introduction to Computer Technology"},{"$f":"CS_BSc_EN_Subjects!C27","v":"Csaba Holló Dr."},{"$f":"CS_BSc_EN_Subjects!D27","v":"none"},{"$f":"CS_BSc_EN_Subjects!E27","v":2},{"$f":"CS_BSc_EN_Subjects!F27","v":2},{"$f":"CS_BSc_EN_Subjects!G27","v":1},{"$f":"CS_BSc_EN_Subjects!H27","v":"Practical grade"},{"$f":"CS_BSc_EN_Subjects!I27","v":" "}]
[{"$f":"CS_BSc_EN_Subjects!A28","v":"IBNa1014Een"},{"$f":"CS_BSc_EN_Subjects!B28","v":"Foundations of Web Development (lecture)"},{"$f":"CS_BSc_EN_Subjects!C28","v":"Csaba Holló Dr."},{"$f":"CS_BSc_EN_Subjects!D28","v":"none"},{"$f":"CS_BSc_EN_Subjects!E28","v":1},{"$f":"CS_BSc_EN_Subjects!F28","v":1},{"$f":"CS_BSc_EN_Subjects!G28","v":1},{"$f":"CS_BSc_EN_Subjects!H28","v":"Report (5 grade)"},{"$f":"CS_BSc_EN_Subjects!I28","v":" "}]
[{"$f":"CS_BSc_EN_Subjects!A29","v":"IBNa1014Len"},{"$f":"CS_BSc_EN_Subjects!B29","v":"Foundations of Web Development (practice)"},{"$f":"CS_BSc_EN_Subjects!C29","v":"Csaba Holló Dr."},{"$f":"CS_BSc_EN_Subjects!D29","v":"none"},{"$f":"CS_BSc_EN_Subjects!E29","v":2},{"$f":"CS_BSc_EN_Subjects!F29","v":1},{"$f":"CS_BSc_EN_Subjects!G29","v":1},{"$f":"CS_BSc_EN_Subjects!H29","v":"Practical grade"},{"$f":"CS_BSc_EN_Subjects!I29","v":" "}]
[{"$f":"CS_BSc_EN_Subjects!A39","v":"IBNa1005Een"},{"$f":"CS_BSc_EN_Subjects!B39","v":"Personal and Social Skills"},{"$f":"CS_BSc_EN_Subjects!C39","v":"Csaba Holló Dr."},{"$f":"CS_BSc_EN_Subjects!D39","v":"none"},{"$f":"CS_BSc_EN_Subjects!E39","v":2},{"$f":"CS_BSc_EN_Subjects!F39","v":2},{"$f":"CS_BSc_EN_Subjects!G39","v":1},{"$f":"CS_BSc_EN_Subjects!H39","v":"Report (5-grade)"},{"$f":"CS_BSc_EN_Subjects!I39","v":" "}]
["Sum of mandatory courses",null,null,null,{"$f":"SUM(E5:E18)","v":30},{"$f":"SUM(F5:F18)","v":24}]
["Suggested mandatory elective courses"]
[null,{"$f":"CS_BSc_EN_Subjects!B71","v":0},{"$f":"CS_BSc_EN_Subjects!C71","v":0},{"$f":"CS_BSc_EN_Subjects!D71","v":0},{"$f":"CS_BSc_EN_Subjects!E71","v":0},{"$f":"CS_BSc_EN_Subjects!F71","v":0},{"$f":"CS_BSc_EN_Subjects!G71","v":0},{"$f":"CS_BSc_EN_Subjects!H71","v":0},{"$f":"CS_BSc_EN_Subjects!I71","v":0}]
["Suggested elective courses"]
[{"$f":"CS_BSc_EN_Subjects!A73","v":0},{"$f":"CS_BSc_EN_Subjects!B73","v":0},{"$f":"CS_BSc_EN_Subjects!C73","v":0},{"$f":"CS_BSc_EN_Subjects!D73","v":0},{"$f":"CS_BSc_EN_Subjects!E73","v":0},{"$f":"CS_BSc_EN_Subjects!F73","v":0},{"$f":"CS_BSc_EN_Subjects!G73","v":0},{"$f":"CS_BSc_EN_Subjects!H73","v":0},{"$f":"CS_BSc_EN_Subjects!I73","v":0}]
[]
[]
[]
["Semester 2"]
["Course code","Course title","Course coordinator","Prerequisite","Credit","Contact hours / week","Semester","Mode of completion","Notes"]
["Mandatory courses"]
[{"$f":"CS_BSc_EN_Subjects!A13","v":"MBNXEN262E"},{"$f":"CS_BSc_EN_Subjects!B13","v":"Fundamentals of Stochastics (lecture)"},{"$f":"CS_BSc_EN_Subjects!C13","v":0},{"$f":"CS_BSc_EN_Subjects!D13","v":"Calculus 1 (lecture)"},{"$f":"CS_BSc_EN_Subjects!E13","v":2},{"$f":"CS_BSc_EN_Subjects!F13","v":2},{"$f":"CS_BSc_EN_Subjects!G13","v":2},{"$f":"CS_BSc_EN_Subjects!H13","v":"Colloquium"},{"$f":"CS_BSc_EN_Subjects!I13","v":0}]
[{"$f":"CS_BSc_EN_Subjects!A14","v":"MBNXEN262G"},{"$f":"CS_BSc_EN_Subjects!B14","v":"Fundamentals of Stochastics  (practice)"},{"$f":"CS_BSc_EN_Subjects!C14","v":0},{"$f":"CS_BSc_EN_Subjects!D14","v":"Calculus 1 (lecture)"},{"$f":"CS_BSc_EN_Subjects!E14","v":3},{"$f":"CS_BSc_EN_Subjects!F14","v":2},{"$f":"CS_BSc_EN_Subjects!G14","v":2},{"$f":"CS_BSc_EN_Subjects!H14","v":"Practical grade"},{"$f":"CS_BSc_EN_Subjects!I14","v":0}]
[{"$f":"CS_BSc_EN_Subjects!A15","v":"IBNa1015Een"},{"$f":"CS_BSc_EN_Subjects!B15","v":"Numerical Computing (lecture)"},{"$f":"CS_BSc_EN_Subjects!C15","v":"Tibor Csendes Dr."},{"$f":"CS_BSc_EN_Subjects!D15","v":"Discrete Mathematics I."},{"$f":"CS_BSc_EN_Subjects!E15","v":2},{"$f":"CS_BSc_EN_Subjects!F15","v":1},{"$f":"CS_BSc_EN_Subjects!G15","v":2},{"$f":"CS_BSc_EN_Subjects!H15","v":"Colloquium"},{"$f":"CS_BSc_EN_Subjects!I15","v":0}]
[{"$f":"CS_BSc_EN_Subjects!A16","v":"IBNa1015Len"},{"$f":"CS_BSc_EN_Subjects!B16","v":"Numerical Computing (practice)"},{"$f":"CS_BSc_EN_Subjects!C16","v":"Tibor Csendes Dr."},{"$f":"CS_BSc_EN_Subjects!D16","v":"Discrete Mathematics I."},{"$f":"CS_BSc_EN_Subjects!E16","v":2},{"$f":"CS_BSc_EN_Subjects!F16","v":1},{"$f":"CS_BSc_EN_Subjects!G16","v":2},{"$f":"CS_BSc_EN_Subjects!H16","v":"Practical grade"},{"$f":"CS_BSc_EN_Subjects!I16","v":0}]
[{"$f":"CS_BSc_EN_Subjects!A17","v":"IBNa1031Een"},{"$f":"CS_BSc_EN_Subjects!B17","v":"Algorithms and Data Structures (lecture)"},{"$f":"CS_BSc_EN_Subjects!C17","v":"József Békési Dr."},{"$f":"CS_BSc_EN_Subjects!D17","v":"Foundations of Programming (practice)"},{"$f":"CS_BSc_EN_Subjects!E17","v":2},{"$f":"CS_BSc_EN_Subjects!F17","v":2},{"$f":"CS_BSc_EN_Subjects!G17","v":2},{"$f":"CS_BSc_EN_Subjects!H17","v":"Colloquium"},{"$f":"CS_BSc_EN_Subjects!I17","v":0}]
[{"$f":"CS_BSc_EN_Subjects!A18","v":"IBNa1031Len"},{"$f":"CS_BSc_EN_Subjects!B18","v":"Algorithms and Data Structures I (practice)"},{"$f":"CS_BSc_EN_Subjects!C18","v":"József Békési Dr."},{"$f":"CS_BSc_EN_Subjects!D18","v":"Foundations of Programming (practice)"},2,1,{"$f":"CS_BSc_EN_Subjects!G18","v":2},{"$f":"CS_BSc_EN_Subjects!H18","v":"Practical grade"},{"$f":"CS_BSc_EN_Subjects!I18","v":0}]
[{"$f":"CS_BSc_EN_Subjects!A30","v":"IBNa1002Een"},{"$f":"CS_BSc_EN_Subjects!B30","v":"Object-Oriented Programming (lecture)"},{"$f":"CS_BSc_EN_Subjects!C30","v":"Rudolf Ferenc Dr."},{"$f":"CS_BSc_EN_Subjects!D30","v":"Foundations of Programming (practice)"},{"$f":"CS_BSc_EN_Subjects!E30","v":2},{"$f":"CS_BSc_EN_Subjects!F30","v":2},{"$f":"CS_BSc_EN_Subjects!G30","v":2},{"$f":"CS_BSc_EN_Subjects!H30","v":"Colloquium"},{"$f":"CS_BSc_EN_Subjects!I30","v":"Critical"}]
[{"$f":"CS_BSc_EN_Subjects!A31","v":"IBNa1002Len"},{"$f":"CS_BSc_EN_Subjects!B31","v":"Object-Oriented Programming (practice)"},{"$f":"CS_BSc_EN_Subjects!C31","v":"Rudolf Ferenc Dr."},{"$f":"CS_BSc_EN_Subjects!D31","v":"Foundations of Programming (practice)"},{"$f":"CS_BSc_EN_Subjects!E31","v":3},{"$f":"CS_BSc_EN_Subjects!F31","v":2},{"$f":"CS_BSc_EN_Subjects!G31","v":2},{"$f":"CS_BSc_EN_Subjects!H31","v":"Practical grade"},{"$f":"CS_BSc_EN_Subjects!I31","v":"Critical"}]
[{"$f":"CS_BSc_EN_Subjects!A32","v":"IBNa1035Een"},{"$f":"CS_BSc_EN_Subjects!B32","v":"Software Development Processes (lecture)"},{"$f":"CS_BSc_EN_Subjects!C32","v":"László Vidács Dr."},{"$f":"CS_BSc_EN_Subjects!D32","v":"none"},{"$f":"CS_BSc_EN_Subjects!E32","v":2},{"$f":"CS_BSc_EN_Subjects!F32","v":2},{"$f":"CS_BSc_EN_Subjects!G32","v":2},{"$f":"CS_BSc_EN_Subjects!H32","v":"Colloquium"},{"$f":"CS_BSc_EN_Subjects!I32","v":0}]
[{"$f":"CS_BSc_EN_Subjects!A33","v":"IBNa1035Len"},{"$f":"CS_BSc_EN_Subjects!B33","v":"Software Development Processes (practice)"},{"$f":"CS_BSc_EN_Subjects!C33","v":"László Vidács Dr."},{"$f":"CS_BSc_EN_Subjects!D33","v":"none"},{"$f":"CS_BSc_EN_Subjects!E33","v":2},{"$f":"CS_BSc_EN_Subjects!F33","v":1},{"$f":"CS_BSc_EN_Subjects!G33","v":2},{"$f":"CS_BSc_EN_Subjects!H33","v":"Practical grade"},{"$f":"CS_BSc_EN_Subjects!I33","v":0}]
[{"$f":"CS_BSc_EN_Subjects!A34","v":"IBNa1036Een"},{"$f":"CS_BSc_EN_Subjects!B34","v":"Operating Systems (lecture)"},{"$f":"CS_BSc_EN_Subjects!C34","v":"Antal Nagy Dr."},{"$f":"CS_BSc_EN_Subjects!D34","v":"none"},{"$f":"CS_BSc_EN_Subjects!E34","v":2},{"$f":"CS_BSc_EN_Subjects!F34","v":2},{"$f":"CS_BSc_EN_Subjects!G34","v":2},{"$f":"CS_BSc_EN_Subjects!H34","v":"Colloquium"},{"$f":"CS_BSc_EN_Subjects!I34","v":0}]
[{"$f":"CS_BSc_EN_Subjects!A35","v":"IBNa1036Len"},{"$f":"CS_BSc_EN_Subjects!B35","v":"Operating Systems (practice)"},{"$f":"CS_BSc_EN_Subjects!C35","v":"Antal Nagy Dr."},{"$f":"CS_BSc_EN_Subjects!D35","v":"none"},{"$f":"CS_BSc_EN_Subjects!E35","v":2},{"$f":"CS_BSc_EN_Subjects!F35","v":1},{"$f":"CS_BSc_EN_Subjects!G35","v":2},{"$f":"CS_BSc_EN_Subjects!H35","v":"Practical grade"},{"$f":"CS_BSc_EN_Subjects!I35","v":0}]
["Sum of mandatory courses",null,null,null,{"$f":"SUM(E28:E41)","v":26},{"$f":"SUM(F28:F41)","v":19}]
["Suggested mandatory elective courses"]
[{"$f":"CS_BSc_EN_Subjects!A43","v":"MBNXEN112E"},{"$f":"CS_BSc_EN_Subjects!B43","v":"Discrete mathematics II. (lecture)"},{"$f":"CS_BSc_EN_Subjects!C43","v":0},{"$f":"CS_BSc_EN_Subjects!D43","v":"Discrete Mathematics 1 (lecture)"},{"$f":"CS_BSc_EN_Subjects!E43","v":2},{"$f":"CS_BSc_EN_Subjects!F43","v":2},{"$f":"CS_BSc_EN_Subjects!G43","v":2},{"$f":"CS_BSc_EN_Subjects!H43","v":0},{"$f":"CS_BSc_EN_Subjects!I43","v":" "}]
[{"$f":"CS_BSc_EN_Subjects!A44","v":"MBNXEN112G"},{"$f":"CS_BSc_EN_Subjects!B44","v":"Discrete mathematics II. (practice)"},{"$f":"CS_BSc_EN_Subjects!C44","v":0},{"$f":"CS_BSc_EN_Subjects!D44","v":"Discrete Mathematics 1 (lecture)"},{"$f":"CS_BSc_EN_Subjects!E44","v":3},{"$f":"CS_BSc_EN_Subjects!F44","v":2},{"$f":"CS_BSc_EN_Subjects!G44","v":2},{"$f":"CS_BSc_EN_Subjects!H44","v":0},{"$f":"CS_BSc_EN_Subjects!I44","v":0}]
["Suggested elective courses"]
[{"$f":"CS_BSc_EN_Subjects!A94","v":0},{"$f":"CS_BSc_EN_Subjects!B94","v":0},{"$f":"CS_BSc_EN_Subjects!C94","v":0},{"$f":"CS_BSc_EN_Subjects!D94","v":0},{"$f":"CS_BSc_EN_Subjects!E94","v":0},{"$f":"CS_BSc_EN_Subjects!F94","v":0},{"$f":"CS_BSc_EN_Subjects!G94","v":0},{"$f":"CS_BSc_EN_Subjects!H94","v":0},{"$f":"CS_BSc_EN_Subjects!I94","v":0}]